[Event "7th Cesme Open-B 2019"]
[Site "Cesme"]
[Date "2019.06.25"]
[Round "3"]
[White "Kiray, Tuncer Efe"]
[Black "Kocakaplan, Emre"]
[Result "1/2-1/2"]
[ECO "C42"]
[WhiteElo "1601"]
[BlackElo "1718"]
[Annotator "NA"]
[PlyCount "126"]
[EventDate "2019.06.24"]
[EventType "swiss"]
[EventCountry "TUR"]
[SourceTitle "playchess.com"]
[Source "ChessBase"]
[SourceQuality "1"]
[TimeControl "5400+30"]

1. e4 {[%emt 0:00:30]} e5 {[%emt 0:00:30]} 2. Nf3 {[%emt 0:00:30]} Nf6 {[%emt 0:00:30]} 3. Nxe5 {[%emt 0:00:30]} d6 {[%emt 0:00:00]} 4. Nf3 {[%emt 0:00:00]} Nxe4 {[%emt 0:00:00]} 5. c4 {[%emt 0:00:00]} Be7 {[%emt 0:01:30]} 6. Nc3 {[%emt 0:00:00]} Nxc3 {[%emt 0:00:30]} 7. dxc3 {[%emt 0:00:00]} Nc6 {[%emt 0:01:30]} 8. Bd3 {[%emt 0:00:30]} O-O {[%emt 0:00:30]} 9. Be3 {[%emt 0:00:00]} Ne5 {[%emt 0:00:30]} 10. Nxe5 {[%emt 0:00:00]} dxe5 {[%emt 0:00:30]} 11. Qc2 {[%emt 0:00:00]} f5 {[%emt 0:00:30]} 12. O-O-O {[%emt 0:00:00]} Qe8 {[%emt 0:00:30]} 13. f3 {[%emt 0:02:30]} Qc6 {[%emt 0:00:30]} 14. Rdf1 {[%emt 0:04:30]} Be6 {[%emt 0:04:30]} 15. g4 {[%emt 0:04:30]} e4 {[%emt 0:01:30]} 16. fxe4 {[%emt 0:01:30]} fxg4 {[%emt 0:00:30]} 17. Qe2 {[%emt 0:03:30]} Qa4 {[%emt 0:07:30]} 18. Kb1 {[%emt 0:01:30]} Rad8 {[%emt 0:08:30]} 19. Rxf8+ {[%emt 0:00:30]} Rxf8 {[%emt 0:00:30]} 20. Rf1 {[%emt 0:00:30]} Rd8 {[%emt 0:00:30]} 21. b3 {[%emt 0:08:30]} Qa5 {[%emt 0:03:30]} 22. Qc2 {[%emt 0:00:30]} Qh5 {[%emt 0:16:30]} 23. Bf4 {[%emt 0:08:30]} Qh3 {[%emt 0:13:30]} 24. Rd1 {[%emt 0:09:30]} c6 {[%emt 0:01:30]} 25. Bg3 {[%emt 0:01:30]} Qh6 {[%emt 0:03:30]} 26. Be2 {[%emt 0:05:30]} Rxd1+ {[%emt 0:00:00]} 27. Qxd1 {[%emt 0:00:30]} Qe3 {[%emt 0:00:00]} 28. Qd3 {[%emt 0:00:30]} Qxd3+ {[%emt 0:05:30]} 29. Bxd3 {[%emt 0:00:30]} h5 {[%emt 0:00:00]} 30. b4 {[%emt 0:03:30]} h4 {[%emt 0:06:00]} 31. Bf4 {[%emt 0:03:30]} g5 {[%emt 0:01:30]} 32. Be5 {[%emt 0:00:00]} Kf7 {[%emt 0:04:39]} 33. Kc2 {[%emt 0:00:00]} Ke8 {[%emt 0:01:16]} 34. a3 {[%emt 0:05:30]} Kd7 {[%emt 0:06:42]} 35. c5 {[%emt 0:00:30]} b6 {[%emt 0:02:20]} 36. cxb6 {[%emt 0:00:30]} axb6 {[%emt 0:00:00]} 37. Kd2 {[%emt 0:00:30]} Bd6 {[%emt 0:05:42]} 38. Bxd6 {[%emt 0:00:30]} Kxd6 {[%emt 0:00:30]} 39. Ke3 {[%emt 0:00:00]} b5 {[%emt 0:00:00]} 40. Kd4 {[%emt 0:02:00]} Bb3 {[%emt 0:01:39]} 41. Be2 {[%emt 0:02:30]} g3 {[%emt 0:03:37]} 42. hxg3 {[%emt 0:01:30]} hxg3 {[%emt 0:00:05]} 43. Ke3 {[%emt 0:00:30]} Be6 {[%emt 0:00:39]} 44. Bf1 {[%emt 0:01:30]} Bg4 {[%emt 0:01:28]} 45. Bg2 {[%emt 0:00:30]} Ke5 {[%emt 0:00:13]} 46. Bf1 {[%emt 0:00:00]} Bd1 {[%emt 0:00:27]} 47. Bg2 {[%emt 0:01:00]} g4 {[%emt 0:00:12]} 48. Bf1 {[%emt 0:00:30]} Bf3 {[%emt 0:00:07]} 49. Bd3 {[%emt 0:00:00]} g2 {[%emt 0:00:48]} 50. Kf2 {[%emt 0:01:00]} Bxe4 {[%emt 0:00:30]} 51. Be2 {[%emt 0:00:00]} Bf3 {[%emt 0:00:15]} 52. Bd3 {[%emt 0:00:00]} Bd5 {[%emt 0:00:04]} 53. Bc2 {[%emt 0:00:30]} g3+ {[%emt 0:00:50]} 54. Kg1 {[%emt 0:00:30]} Kf4 {[%emt 0:00:58]} 55. a4 {[%emt 0:00:00]} Ke3 {[%emt 0:00:32]} 56. a5 {[%emt 0:02:00]} Kd2 {[%emt 0:00:47]} 57. Bf5 {[%emt 0:00:30]} c5 {[%emt 0:00:46]} 58. bxc5 {[%emt 0:02:30]} Kxc3 {[%emt 0:00:02]} 59. c6 {[%emt 0:00:00]} Bxc6 {[%emt 0:00:21]} 60. Be4 {[%emt 0:01:00]} Bxe4 {[%emt 0:01:20]} 61. a6 {[%emt 0:00:30]} b4 {[%emt 0:00:39]} 62. a7 {[%emt 0:00:00]} b3 {[%emt 0:00:48]} 63. a8=Q {[%emt 0:00:00]} Bxa8 {[%emt 0:00:00]} 1/2-1/2

[Event "7th Cesme Open-B 2019"]
[Site "Cesme"]
[Date "2019.06.25"]
[Round "3"]
[White "Tokat, Nehir"]
[Black "Ozcan, Kadir Kutay"]
[Result "1/2-1/2"]
[ECO "A50"]
[WhiteElo "1566"]
[BlackElo "1820"]
[Annotator "NA"]
[PlyCount "84"]
[EventDate "2019.06.24"]
[EventType "swiss"]
[EventCountry "TUR"]
[SourceTitle "playchess.com"]
[Source "ChessBase"]
[SourceQuality "1"]
[TimeControl "5400+30"]

1. d4 {[%emt 0:00:30]} c6 {[%emt 0:02:30]} 2. Nf3 {[%emt 0:00:00]} Nf6 {[%emt 0:00:00]} 3. c4 {[%emt 0:00:00]} b5 {[%emt 0:01:00]} 4. b3 {[%emt 0:00:30]} e6 {[%emt 0:00:30]} 5. e3 {[%emt 0:00:30]} bxc4 {[%emt 0:00:30]} 6. bxc4 {[%emt 0:01:30]} d5 {[%emt 0:02:30]} 7. Bd3 {[%emt 0:01:30]} Bd6 {[%emt 0:00:30]} 8. O-O {[%emt 0:00:30]} O-O {[%emt 0:00:00]} 9. Nbd2 {[%emt 0:00:30]} Nbd7 {[%emt 0:02:00]} 10. Bb2 {[%emt 0:05:30]} Ba6 {[%emt 0:02:30]} 11. Qc2 {[%emt 0:03:30]} c5 {[%emt 0:04:30]} 12. cxd5 {[%emt 0:02:30]} Bxd3 {[%emt 0:00:30]} 13. Qxd3 {[%emt 0:00:30]} exd5 {[%emt 0:00:30]} 14. dxc5 {[%emt 0:06:30]} Nxc5 {[%emt 0:00:30]} 15. Qf5 {[%emt 0:00:30]} Qd7 {[%emt 0:02:30]} 16. Nh4 {[%emt 0:04:30]} Be7 {[%emt 0:04:30]} 17. Qxd7 {[%emt 0:14:30]} Nfxd7 {[%emt 0:00:30]} 18. Nf5 {[%emt 0:00:30]} Bf6 {[%emt 0:00:00]} 19. Bxf6 {[%emt 0:01:30]} Nxf6 {[%emt 0:00:00]} 20. Rac1 {[%emt 0:00:30]} Ne6 {[%emt 0:00:30]} 21. Nf3 {[%emt 0:05:30]} g6 {[%emt 0:01:30]} 22. Ne7+ {[%emt 0:00:00]} Kg7 {[%emt 0:00:30]} 23. Rfd1 {[%emt 0:00:00]} Rfd8 {[%emt 0:00:30]} 24. Ne5 {[%emt 0:01:30]} Rd6 {[%emt 0:01:30]} 25. Rc6 {[%emt 0:02:30]} Rad8 {[%emt 0:01:30]} 26. Rxd6 {[%emt 0:06:30]} Rxd6 {[%emt 0:00:30]} 27. N7c6 {[%emt 0:00:30]} Nd7 {[%emt 0:03:30]} 28. g3 {[%emt 0:09:30]} Nxe5 {[%emt 0:00:30]} 29. Nxe5 {[%emt 0:00:30]} f6 {[%emt 0:00:30]} 30. Nf3 {[%emt 0:01:30]} Kf7 {[%emt 0:01:30]} 31. Kf1 {[%emt 0:02:30]} Ke7 {[%emt 0:00:30]} 32. Ke2 {[%emt 0:00:30]} Ra6 {[%emt 0:00:30]} 33. Rd2 {[%emt 0:00:30]} Nc5 {[%emt 0:00:30]} 34. Kf1 {[%emt 0:05:30]} Kd6 {[%emt 0:04:30]} 35. Nd4 {[%emt 0:00:30]} Rb6 {[%emt 0:00:00]} 36. Ne2 {[%emt 0:03:30]} Ne4 {[%emt 0:02:00]} 37. Rc2 {[%emt 0:00:30]} a5 {[%emt 0:01:30]} 38. f3 {[%emt 0:07:10]} Ng5 {[%emt 0:02:30]} 39. Nd4 {[%emt 0:01:10]} a4 {[%emt 0:00:30]} 40. Ke2 {[%emt 0:01:10]} Ne6 {[%emt 0:00:30]} 41. Nxe6 {[%emt 0:00:39]} Kxe6 {[%emt 0:00:30]} 42. Kd3 {[%emt 0:00:00]} a3 {[%emt 0:03:30]} 1/2-1/2

[Event "7th Cesme Open-B 2019"]
[Site "Cesme"]
[Date "2019.06.25"]
[Round "3"]
[White "Yalcindag, Hakan"]
[Black "Acar, Cengiz Can"]
[Result "0-1"]
[ECO "B01"]
[WhiteElo "1501"]
[BlackElo "1741"]
[Annotator "NA"]
[PlyCount "50"]
[EventDate "2019.06.24"]
[EventType "swiss"]
[EventCountry "TUR"]
[SourceTitle "playchess.com"]
[Source "ChessBase"]
[SourceQuality "1"]
[TimeControl "5400+30"]

1. e4 {[%emt 0:00:30]} d5 {[%emt 0:01:30]} 2. exd5 {[%emt 0:00:30]} Qxd5 {[%emt 0:00:30]} 3. Nf3 {[%emt 0:00:00]} c6 {[%emt 0:00:30]} 4. d4 {[%emt 0:00:00]} Bg4 {[%emt 0:00:30]} 5. Be2 {[%emt 0:00:00]} Nd7 {[%emt 0:00:30]} 6. O-O {[%emt 0:00:00]} e6 {[%emt 0:04:30]} 7. c4 {[%emt 0:01:30]} Qd6 {[%emt 0:00:30]} 8. Nc3 {[%emt 0:02:30]} Ngf6 {[%emt 0:00:30]} 9. Be3 {[%emt 0:02:30]} Qc7 {[%emt 0:15:30]} 10. Qd2 {[%emt 0:06:30]} O-O-O {[%emt 0:06:30]} 11. a3 {[%emt 0:08:30]} Bxf3 {[%emt 0:15:30]} 12. Bxf3 {[%emt 0:02:30]} Ne5 {[%emt 0:00:30]} 13. Qe2 {[%emt 0:03:30]} Nxf3+ {[%emt 0:02:30]} 14. Qxf3 {[%emt 0:00:30]} h5 {[%emt 0:09:30]} 15. Ne4 {[%emt 0:18:30]} Nxe4 {[%emt 0:05:30]} 16. Qxe4 {[%emt 0:00:30]} Bd6 {[%emt 0:02:30]} 17. h3 {[%emt 0:02:30]} Qe7 {[%emt 0:01:30]} 18. Bf4 {[%emt 0:11:30]} Qh4 {[%emt 0:01:30]} 19. g3 {[%emt 0:01:30]} Qxh3 {[%emt 0:00:30]} 20. Bg5 {[%emt 0:08:30]} f6 {[%emt 0:03:30]} 21. Bf4 {[%emt 0:00:30]} h4 {[%emt 0:04:30]} 22. Bxd6 {[%emt 0:01:30]} Rxd6 {[%emt 0:00:30]} 23. g4 {[%emt 0:00:30]} f5 {[%emt 0:00:30]} 24. gxf5 {[%emt 0:02:30]} exf5 {[%emt 0:00:30]} 25. Qe5 {[%emt 0:01:30]} Rg6+ {[%emt 0:00:30]} 0-1

[Event "7th Cesme Open-B 2019"]
[Site "Cesme"]
[Date "2019.06.26"]
[Round "4"]
[White "Ozcan, Kadir Kutay"]
[Black "Uysal, Ugur"]
[Result "1-0"]
[ECO "B23"]
[WhiteElo "1820"]
[BlackElo "1644"]
[Annotator "NA RC"]
[PlyCount "97"]
[EventDate "2019.06.24"]
[EventType "swiss"]
[EventCountry "TUR"]
[SourceTitle "playchess.com"]
[Source "ChessBase"]
[SourceQuality "1"]
[TimeControl "5400+30"]

1. e4 {[%emt 0:00:30]} c5 {[%emt 0:00:30]} 2. Nc3 {[%emt 0:00:00]} e6 {[%emt 0:00:00]} 3. f4 {[%emt 0:00:00]} a6 {[%emt 0:02:00]} 4. g3 {[%emt 0:00:30]} d5 {[%emt 0:05:30]} 5. Bg2 {[%emt 0:03:30]} d4 {[%emt 0:02:30]} 6. Nce2 {[%emt 0:00:30]} h5 {[%emt 0:02:30]} 7. Nf3 {[%emt 0:00:30]} Be7 {[%emt 0:00:30]} 8. h3 {[%emt 0:00:30]} Nf6 {[%emt 0:01:30]} 9. d3 {[%emt 0:00:30]} Nc6 {[%emt 0:00:30]} 10. O-O {[%emt 0:00:30]} Rb8 {[%emt 0:02:30]} 11. c3 {[%emt 0:00:30]} b5 {[%emt 0:00:30]} 12. cxd4 {[%emt 0:00:30]} Nxd4 {[%emt 0:00:30]} 13. Nexd4 {[%emt 0:00:30]} cxd4 {[%emt 0:00:30]} 14. b3 {[%emt 0:01:30]} Bb7 {[%emt 0:05:30]} 15. Bb2 {[%emt 0:00:30]} Bc5 {[%emt 0:00:30]} 16. Kh2 {[%emt 0:00:30]} Rc8 {[%emt 0:08:30]} 17. Rc1 {[%emt 0:01:30]} O-O {[%emt 0:16:30]} 18. Qe2 {[%emt 0:02:30]} a5 {[%emt 0:02:30]} 19. Ng5 {[%emt 0:03:30]} g6 {[%emt 0:02:30]} 20. Nf3 {[%emt 0:01:30]} Re8 {[%emt 0:06:30]} 21. Qf2 {[%emt 0:01:30]} b4 {[%emt 0:00:30]} 22. Ne5 {[%emt 0:05:30]} Nd7 {[%emt 0:04:30]} 23. Nf3 {[%emt 0:03:30]} Nf6 {[%emt 0:05:30]} 24. Rfd1 {[%emt 0:01:30]} Qb6 {[%emt 0:03:30]} 25. Bf1 {[%emt 0:05:30]} Red8 {[%emt 0:00:30]} 26. Ne5 {[%emt 0:04:30]} Ba6 {[%emt 0:01:30]} 27. Nc4 {[%emt 0:00:30]} Bxc4 {[%emt 0:00:30]} 28. Rxc4 {[%emt 0:00:30]} Ne8 {[%emt 0:00:30]} 29. e5 {[%emt 0:00:30]} Nc7 {[%emt 0:03:30]} 30. Bg2 {[%emt 0:01:30]} Nb5 {[%emt 0:00:30]} 31. Bc1 {[%emt 0:01:30]} Nc3 {[%emt 0:03:55]} 32. Rf1 {[%emt 0:00:30]} Be7 {[%emt 0:02:23]} 33. Rxc8 {[%emt 0:01:30]} Rxc8 {[%emt 0:00:30]} 34. g4 {[%emt 0:00:30]} hxg4 {[%emt 0:00:32]} 35. hxg4 {[%emt 0:00:00]} Qc5 {[%emt 0:02:56]} 36. Bf3 {[%emt 0:05:00]} Nb5 {[%emt 0:01:19]} 37. Bd2 {[%emt 0:01:30]} Kg7 {[%emt 0:01:01]} 38. Kg2 {[%emt 0:00:30]} Rh8 {[%emt 0:01:24]} 39. Rc1 {[%emt 0:00:30]} Nc3 {[%emt 0:00:05]} 40. Be4 {[%emt 0:02:30]} Rh4 {[%emt 0:04:32]} 41. Qg3 {[%emt 0:01:30]} Nxe4 {[%emt 0:01:22]} 42. dxe4 {[%emt 0:06:30]} Qb5 {[%emt 0:00:04]} 43. Rc4 {[%emt 0:01:30]} Rh8 {[%emt 0:02:45]} 44. f5 {[%emt 0:00:30]} Bc5 {[%emt 0:00:44]} 45. Qf4 {[%emt 0:05:30]} exf5 {[%emt 0:04:06]} 46. gxf5 {[%emt 0:00:00]} Qb6 {[%emt 0:01:36]} 47. e6 {[%emt 0:01:00]} Qd6 {[%emt 0:00:32]} 48. f6+ {[%emt 0:00:30]} Kh7 {[%emt 0:00:39]} 49. Qh4+ {[%emt 0:00:00]} 1-0

[Event "7th Cesme Open-B 2019"]
[Site "Cesme"]
[Date "2019.06.26"]
[Round "4"]
[White "Acar, Cengiz Can"]
[Black "Gece, Ugur"]
[Result "1/2-1/2"]
[ECO "A16"]
[WhiteElo "1741"]
[BlackElo "1688"]
[Annotator "NA RC"]
[PlyCount "52"]
[EventDate "2019.06.24"]
[EventType "swiss"]
[EventCountry "TUR"]
[SourceTitle "playchess.com"]
[Source "ChessBase"]
[SourceQuality "1"]
[TimeControl "5400+30"]

1. g3 {[%emt 0:11:30]} d5 {[%emt 0:08:30]} 2. Bg2 {[%emt 0:00:30]} Nf6 {[%emt 0:00:30]} 3. c4 {[%emt 0:00:30]} c6 {[%emt 0:00:30]} 4. cxd5 {[%emt 0:00:30]} cxd5 {[%emt 0:00:30]} 5. Nc3 {[%emt 0:00:30]} Nc6 {[%emt 0:07:30]} 6. d3 {[%emt 0:20:30]} Bf5 {[%emt 0:04:30]} 7. Qb3 {[%emt 0:06:30]} Na5 {[%emt 0:00:30]} 8. Qa4+ {[%emt 0:02:30]} Bd7 {[%emt 0:01:30]} 9. Qd1 {[%emt 0:03:30]} e6 {[%emt 0:05:30]} 10. Nf3 {[%emt 0:01:30]} Be7 {[%emt 0:04:30]} 11. O-O {[%emt 0:03:30]} O-O {[%emt 0:00:30]} 12. Ne5 {[%emt 0:03:30]} Qc7 {[%emt 0:06:30]} 13. Bf4 {[%emt 0:05:30]} Bd6 {[%emt 0:01:30]} 14. Nxd7 {[%emt 0:00:30]} Qxd7 {[%emt 0:00:30]} 15. Bg5 {[%emt 0:00:30]} Be7 {[%emt 0:04:30]} 16. Rc1 {[%emt 0:05:30]} h6 {[%emt 0:02:30]} 17. Bd2 {[%emt 0:06:30]} Nc6 {[%emt 0:02:30]} 18. a3 {[%emt 0:03:30]} Rfc8 {[%emt 0:12:30]} 19. b4 {[%emt 0:09:19]} Nd4 {[%emt 0:07:30]} 20. Bf4 {[%emt 0:02:49]} a5 {[%emt 0:01:30]} 21. Be5 {[%emt 0:03:17]} Nb5 {[%emt 0:02:30]} 22. Na4 {[%emt 0:01:51]} Rxc1 {[%emt 0:04:30]} 23. Qxc1 {[%emt 0:00:10]} Rc8 {[%emt 0:00:30]} 24. Qb2 {[%emt 0:00:29]} Qc6 {[%emt 0:00:35]} 25. bxa5 {[%emt 0:03:43]} Bxa3 {[%emt 0:05:28]} 26. Qb3 {[%emt 0:00:44]} Nd7 {[%emt 0:01:37]} 1/2-1/2

[Event "7th Cesme Open-B 2019"]
[Site "Cesme"]
[Date "2019.06.26"]
[Round "4"]
[White "Altundal, Arda"]
[Black "Kayis, Gulcan Sena"]
[Result "*"]
[ECO "E70"]
[WhiteElo "1707"]
[BlackElo "1569"]
[Annotator "NA RC"]
[PlyCount "97"]
[EventDate "2019.06.24"]
[EventType "swiss"]
[EventCountry "TUR"]
[SourceTitle "playchess.com"]
[Source "ChessBase"]
[SourceQuality "1"]
[TimeControl "5400+30"]

1. d4 {[%emt 0:00:30]} Nf6 {[%emt 0:00:30]} 2. c4 {[%emt 0:00:30]} g6 {[%emt 0:00:30]} 3. Nc3 {[%emt 0:00:30]} Bg7 {[%emt 0:00:30]} 4. e4 {[%emt 0:00:30]} d6 {[%emt 0:00:30]} 5. Bd3 {[%emt 0:00:30]} O-O {[%emt 0:00:30]} 6. Nge2 {[%emt 0:00:30]} Nbd7 {[%emt 0:00:30]} 7. O-O {[%emt 0:00:30]} e5 {[%emt 0:00:30]} 8. d5 {[%emt 0:00:30]} Nc5 {[%emt 0:00:30]} 9. Bc2 {[%emt 0:00:30]} a5 {[%emt 0:00:30]} 10. a3 {[%emt 0:00:30]} Bd7 {[%emt 0:00:30]} 11. Be3 {[%emt 0:26:30]} Na6 {[%emt 0:17:30]} 12. h3 {[%emt 0:00:30]} Ne8 {[%emt 0:00:30]} 13. f4 {[%emt 0:00:30]} f5 {[%emt 0:00:30]} 14. exf5 {[%emt 0:00:30]} gxf5 {[%emt 0:02:30]} 15. Rb1 {[%emt 0:15:30]} b6 {[%emt 0:10:30]} 16. b4 {[%emt 0:05:30]} axb4 {[%emt 0:02:30]} 17. axb4 {[%emt 0:00:30]} Qe7 {[%emt 0:00:30]} 18. Qd2 {[%emt 0:02:30]} Kh8 {[%emt 0:03:30]} 19. Ra1 {[%emt 0:03:30]} Qd8 {[%emt 0:01:30]} 20. Rfb1 {[%emt 0:04:30]} Nf6 {[%emt 0:00:30]} 21. Ng3 {[%emt 0:02:30]} e4 {[%emt 0:01:30]} 22. Nge2 {[%emt 0:01:30]} Qe8 {[%emt 0:07:30]} 23. Nd4 {[%emt 0:04:30]} Nh5 {[%emt 0:04:30]} 24. Ncb5 {[%emt 0:04:30]} Qg6 {[%emt 0:04:30]} 25. Ra2 {[%emt 0:04:30]} Bc8 {[%emt 0:03:30]} 26. Rba1 {[%emt 0:03:25]} Bb7 {[%emt 0:00:30]} 27. Ne6 {[%emt 0:07:45]} Bxa1 {[%emt 0:02:30]} 28. Nxf8 {[%emt 0:00:41]} Rxf8 {[%emt 0:00:30]} 29. Rxa1 {[%emt 0:00:07]} Rg8 {[%emt 0:03:30]} 30. Bd1 {[%emt 0:02:41]} Nf6 {[%emt 0:00:30]} 31. Bd4 {[%emt 0:02:18]} h6 {[%emt 0:03:30]} 32. Qb2 {[%emt 0:00:27]} Rf8 {[%emt 0:00:30]} 33. Nxc7 {[%emt 0:04:24]} Nxc7 {[%emt 0:01:30]} 34. Ra7 {[%emt 0:00:01]} Ncxd5 {[%emt 0:00:30]} 35. cxd5 {[%emt 0:00:30]} Bxd5 {[%emt 0:00:30]} 36. Bh5 {[%emt 0:00:00]} Qg7 {[%emt 0:01:30]} 37. Rxg7 {[%emt 0:00:36]} Kxg7 {[%emt 0:00:30]} 38. Bxf6+ {[%emt 0:00:30]} Rxf6 {[%emt 0:00:30]} 39. Qd4 {[%emt 0:00:30]} Bf7 {[%emt 0:00:30]} 40. Bxf7 {[%emt 0:00:30]} Kxf7 {[%emt 0:00:30]} 41. Qxb6 {[%emt 0:00:30]} Re6 {[%emt 0:00:30]} 42. Qc7+ {[%emt 0:00:00]} Kg6 {[%emt 0:00:00]} 43. b5 {[%emt 0:00:00]} e3 {[%emt 0:00:00]} 44. Kf1 {[%emt 0:00:15]} d5 {[%emt 0:00:00]} 45. b6 {[%emt 0:00:30]} d4 {[%emt 0:00:00]} 46. Qc4 {[%emt 0:00:26]} Re4 {[%emt 0:00:30]} 47. Qc6+ {[%emt 0:00:33]} Kh5 {[%emt 0:00:00]} 48. Qxe4 {[%emt 0:00:30]} fxe4 {[%emt 0:00:00]} 49. b7 {[%emt 0:00:00]} *

[Event "7th Cesme Open-B 2019"]
[Site "Cesme"]
[Date "2019.06.26"]
[Round "4"]
[White "Simsek, Meltem"]
[Black "Cil, Batuhan"]
[Result "0-1"]
[ECO "A23"]
[WhiteElo "1684"]
[BlackElo "1740"]
[Annotator "NA RC"]
[PlyCount "116"]
[EventDate "2019.06.24"]
[EventType "swiss"]
[EventCountry "TUR"]
[SourceTitle "playchess.com"]
[Source "ChessBase"]
[SourceQuality "1"]
[TimeControl "5400+30"]

1. c4 {[%emt 0:02:30]} e5 {[%emt 0:01:30]} 2. g3 {[%emt 0:00:30]} Nf6 {[%emt 0:00:30]} 3. Nc3 {[%emt 0:00:00]} c6 {[%emt 0:00:30]} 4. Nf3 {[%emt 0:01:00]} e4 {[%emt 0:05:30]} 5. Ng5 {[%emt 0:00:00]} d5 {[%emt 0:01:30]} 6. cxd5 {[%emt 0:00:00]} cxd5 {[%emt 0:00:30]} 7. d3 {[%emt 0:00:30]} h6 {[%emt 0:10:30]} 8. Nh3 {[%emt 0:04:30]} Nc6 {[%emt 0:06:30]} 9. dxe4 {[%emt 0:00:30]} d4 {[%emt 0:01:30]} 10. e5 {[%emt 0:01:30]} Nxe5 {[%emt 0:03:30]} 11. Qa4+ {[%emt 0:02:30]} Nc6 {[%emt 0:01:30]} 12. Nb1 {[%emt 0:02:30]} Bb4+ {[%emt 0:06:30]} 13. Bd2 {[%emt 0:00:30]} Bxd2+ {[%emt 0:10:30]} 14. Nxd2 {[%emt 0:00:00]} O-O {[%emt 0:02:30]} 15. Bg2 {[%emt 0:06:00]} Bxh3 {[%emt 0:07:30]} 16. Bxh3 {[%emt 0:00:30]} Re8 {[%emt 0:04:30]} 17. Bg2 {[%emt 0:03:30]} Qe7 {[%emt 0:03:30]} 18. Bf3 {[%emt 0:06:30]} d3 {[%emt 0:02:30]} 19. e3 {[%emt 0:00:30]} b5 {[%emt 0:01:30]} 20. Qxb5 {[%emt 0:00:30]} Nd4 {[%emt 0:00:30]} 21. Qxd3 {[%emt 0:00:30]} Red8 {[%emt 0:07:56]} 22. Qb1 {[%emt 0:20:30]} Rac8 {[%emt 0:05:15]} 23. Bd1 {[%emt 0:00:30]} Qb4 {[%emt 0:07:23]} 24. exd4 {[%emt 0:06:30]} Rxd4 {[%emt 0:00:09]} 25. O-O {[%emt 0:00:30]} Rxd2 {[%emt 0:00:09]} 26. Bb3 {[%emt 0:00:00]} Qd4 {[%emt 0:02:47]} 27. Qg6 {[%emt 0:03:00]} Rc7 {[%emt 0:03:02]} 28. Rad1 {[%emt 0:00:30]} Qxb2 {[%emt 0:04:19]} 29. Rxd2 {[%emt 0:02:30]} Qxd2 {[%emt 0:00:00]} 30. Qf5 {[%emt 0:00:30]} Rc1 {[%emt 0:00:00]} 31. Rxc1 {[%emt 0:04:30]} Qxc1+ {[%emt 0:00:00]} 32. Kg2 {[%emt 0:00:00]} Qc6+ {[%emt 0:00:00]} 33. Qf3 {[%emt 0:04:00]} Qe4 {[%emt 0:01:15]} 34. Qxe4 {[%emt 0:01:30]} Nxe4 {[%emt 0:00:01]} 35. Kf3 {[%emt 0:00:00]} Nd2+ {[%emt 0:00:25]} 36. Kf4 {[%emt 0:02:00]} Kf8 {[%emt 0:00:53]} 37. h4 {[%emt 0:00:30]} Ke7 {[%emt 0:00:20]} 38. Ke3 {[%emt 0:01:30]} Nxb3 {[%emt 0:00:30]} 39. axb3 {[%emt 0:00:30]} a5 {[%emt 0:01:38]} 40. Kd4 {[%emt 0:00:30]} Kd6 {[%emt 0:00:15]} 41. Kc4 {[%emt 0:00:30]} Kc6 {[%emt 0:00:00]} 42. g4 {[%emt 0:02:30]} g5 {[%emt 0:00:28]} 43. h5 {[%emt 0:00:00]} f6 {[%emt 0:00:17]} 44. f3 {[%emt 0:00:00]} Kb6 {[%emt 0:00:06]} 45. Kd5 {[%emt 0:00:30]} Kb5 {[%emt 0:00:43]} 46. Ke6 {[%emt 0:00:30]} Kb4 {[%emt 0:00:00]} 47. Kxf6 {[%emt 0:00:30]} Kxb3 {[%emt 0:00:00]} 48. Kg6 {[%emt 0:00:00]} a4 {[%emt 0:00:39]} 49. Kxh6 {[%emt 0:00:00]} a3 {[%emt 0:00:15]} 50. Kxg5 {[%emt 0:00:00]} a2 {[%emt 0:00:00]} 51. f4 {[%emt 0:00:00]} a1=Q {[%emt 0:00:07]} 52. h6 {[%emt 0:00:30]} Kc4 {[%emt 0:00:40]} 53. f5 {[%emt 0:00:30]} Kd5 {[%emt 0:01:05]} 54. Kg6 {[%emt 0:00:30]} Qh8 {[%emt 0:02:30]} 55. h7 {[%emt 0:05:30]} Qf8 {[%emt 0:00:45]} 56. g5 {[%emt 0:00:30]} Ke5 {[%emt 0:00:34]} 57. f6 {[%emt 0:00:30]} Ke6 {[%emt 0:00:12]} 58. Kh5 {[%emt 0:02:50]} Ke5 {[%emt 0:00:36]} 0-1

[Event "7th Cesme Open-B 2019"]
[Site "Cesme"]
[Date "2019.06.26"]
[Round "5"]
[White "Ozcan, Sezer"]
[Black "Ozcan, Kadir Kutay"]
[Result "0-1"]
[ECO "B52"]
[WhiteElo "1781"]
[BlackElo "1820"]
[Annotator "NA"]
[PlyCount "106"]
[EventDate "2019.06.24"]
[EventType "swiss"]
[EventCountry "TUR"]
[SourceTitle "playchess.com"]
[Source "ChessBase"]
[SourceQuality "1"]
[TimeControl "5400+30"]

1. e4 {[%emt 0:00:30]} c5 {[%emt 0:00:30]} 2. Nf3 {[%emt 0:00:30]} d6 {[%emt 0:00:00]} 3. Bb5+ {[%emt 0:00:30]} Bd7 {[%emt 0:00:00]} 4. Bxd7+ {[%emt 0:00:00]} Qxd7 {[%emt 0:00:30]} 5. O-O {[%emt 0:00:00]} Nc6 {[%emt 0:00:30]} 6. c3 {[%emt 0:01:30]} Nf6 {[%emt 0:02:30]} 7. Re1 {[%emt 0:00:30]} e6 {[%emt 0:00:30]} 8. d4 {[%emt 0:01:30]} cxd4 {[%emt 0:00:30]} 9. cxd4 {[%emt 0:00:00]} d5 {[%emt 0:01:30]} 10. e5 {[%emt 0:07:00]} Ne4 {[%emt 0:01:30]} 11. Nbd2 {[%emt 0:03:30]} Nxd2 {[%emt 0:02:30]} 12. Bxd2 {[%emt 0:01:30]} Be7 {[%emt 0:00:30]} 13. Bg5 {[%emt 0:04:30]} h6 {[%emt 0:03:30]} 14. Bxe7 {[%emt 0:01:30]} Qxe7 {[%emt 0:00:30]} 15. Rc1 {[%emt 0:09:30]} O-O {[%emt 0:00:30]} 16. Re2 {[%emt 0:02:30]} Rac8 {[%emt 0:00:30]} 17. Rec2 {[%emt 0:01:30]} Qd7 {[%emt 0:01:30]} 18. Qd2 {[%emt 0:09:30]} Ne7 {[%emt 0:00:30]} 19. Qa5 {[%emt 0:08:30]} Rxc2 {[%emt 0:01:30]} 20. Rxc2 {[%emt 0:00:30]} Rc8 {[%emt 0:00:30]} 21. Rc3 {[%emt 0:14:30]} Rxc3 {[%emt 0:01:30]} 22. bxc3 {[%emt 0:00:30]} b6 {[%emt 0:00:30]} 23. Qa6 {[%emt 0:11:55]} Qc7 {[%emt 0:02:30]} 24. h3 {[%emt 0:06:06]} Nc6 {[%emt 0:01:30]} 25. Kf1 {[%emt 0:03:01]} Na5 {[%emt 0:00:30]} 26. Qd3 {[%emt 0:00:04]} Nc4 {[%emt 0:01:30]} 27. Nd2 {[%emt 0:02:53]} Nxd2+ {[%emt 0:02:30]} 28. Qxd2 {[%emt 0:00:30]} Qc4+ {[%emt 0:00:00]} 29. Ke1 {[%emt 0:00:11]} b5 {[%emt 0:00:00]} 30. f4 {[%emt 0:02:03]} a5 {[%emt 0:00:30]} 31. g4 {[%emt 0:03:12]} Kf8 {[%emt 0:01:30]} 32. h4 {[%emt 0:01:22]} b4 {[%emt 0:02:30]} 33. cxb4 {[%emt 0:00:13]} axb4 {[%emt 0:00:00]} 34. f5 {[%emt 0:02:53]} b3 {[%emt 0:01:00]} 35. axb3 {[%emt 0:02:13]} Qxb3 {[%emt 0:00:30]} 36. Qa5 {[%emt 0:00:22]} Qe3+ {[%emt 0:01:30]} 37. Kd1 {[%emt 0:01:16]} Qxd4+ {[%emt 0:00:00]} 38. Kc1 {[%emt 0:00:06]} Qc4+ {[%emt 0:03:00]} 39. Kb2 {[%emt 0:00:33]} Kg8 {[%emt 0:02:30]} 40. Qd8+ {[%emt 0:00:27]} Kh7 {[%emt 0:00:30]} 41. f6 {[%emt 0:00:37]} Qd4+ {[%emt 0:01:30]} 42. Kb3 {[%emt 0:00:23]} Qxe5 {[%emt 0:00:30]} 43. g5 {[%emt 0:00:31]} hxg5 {[%emt 0:00:30]} 44. Qf8 {[%emt 0:00:32]} Qxf6 {[%emt 0:00:30]} 45. hxg5 {[%emt 0:00:08]} Qf3+ {[%emt 0:00:30]} 46. Kb4 {[%emt 0:00:57]} Kg6 {[%emt 0:00:30]} 47. Qc8 {[%emt 0:00:04]} Kxg5 {[%emt 0:00:30]} 48. Qd8+ {[%emt 0:00:30]} Kg6 {[%emt 0:00:00]} 49. Qc7 {[%emt 0:00:52]} Qe4+ {[%emt 0:00:00]} 50. Ka3 {[%emt 0:00:00]} Qd3+ {[%emt 0:00:30]} 51. Kb2 {[%emt 0:00:00]} d4 {[%emt 0:00:30]} 52. Qe5 {[%emt 0:00:00]} Qf3 {[%emt 0:00:30]} 53. Kc2 {[%emt 0:00:38]} Qf5+ {[%emt 0:00:00]} 0-1